bitfinex/quotes_BTCUSD_20241211
["timestamp","ask_amount","ask_price","bid_price","bid_amount"]
[1733940911701,0.10030845,99800.0,99797.0,0.06027394]
[1733940912476,0.10030845,99800.0,99767.0,0.15]
[1733940912477,0.0010553,99815.0,99804.0,0.06027394]
[1733940912813,0.50105645,99814.0,99809.0,0.06027394]
[1733940912949,0.400753,99812.0,99809.0,0.06027394]
[1733940913166,0.10030845,99811.0,99809.0,0.06027394]
[1733940913390,0.20113549,99810.0,99809.0,0.06027394]
[1733940913598,0.30068845,99810.0,99809.0,0.06027394]
[1733940914725,0.007,99811.0,99810.0,0.16046394]
[1733940914914,0.007,99811.0,99810.0,0.31997242]
[1733940915222,0.007,99811.0,99810.0,0.47447899]
[1733940915398,0.007,99811.0,99810.0,0.62447899]
[1733940915846,5.53e-05,99815.0,99814.0,0.100186]
[1733940916057,5.53e-05,99815.0,99814.0,0.72127836]
[1733940916305,5.53e-05,99815.0,99814.0,0.7247481]
[1733940916565,3e-07,99815.0,99814.0,0.71523962]
[1733940916763,3e-07,99815.0,99814.0,0.74774709]
[1733940916969,0.1229,99867.0,99814.0,0.74774709]
[1733940916970,0.1229,99867.0,99863.0,0.06027394]
[1733940917321,0.22376228,99867.0,99864.0,0.06027394]
[1733940918146,0.22376228,99867.0,99865.0,0.100135]
[1733940918361,0.22876228,99867.0,99865.0,0.100135]
[1733940918557,0.12845383,99867.0,99866.0,0.06027394]
[1733940918755,0.12845383,99867.0,99866.0,0.21027394]
[1733940918756,0.00555383,99867.0,99866.0,0.21027394]
[1733940919399,0.01455383,99867.0,99866.0,0.21027394]
[1733940919808,0.00055383,99867.0,99866.0,0.21027394]
[1733940920010,0.00455383,99867.0,99866.0,0.21027394]
[1733940920162,0.00955383,99867.0,99866.0,0.21027394]
[1733940920544,0.00455383,99867.0,99866.0,0.21027394]
[1733940920948,0.00455383,99867.0,99866.0,0.46058239]
[1733940921401,0.00455383,99867.0,99866.0,0.61058239]
[1733940922279,8.3e-07,99867.0,99866.0,0.61058239]
[1733940922698,0.0001716,99880.0,99879.0,0.31039494]
[1733940922906,0.0001716,99880.0,99879.0,0.46039494]
[1733940923112,0.00033764,99880.0,99879.0,0.46039494]
[1733940923324,0.00033764,99880.0,99879.0,0.56070339]
[1733940923534,6.4e-07,99880.0,99879.0,0.71070339]
[1733940923950,0.00100064,99880.0,99879.0,0.71070339]
[1733940924160,0.00100064,99880.0,99879.0,0.73084438]
[1733940924565,6.4e-07,99880.0,99879.0,0.73084438]
[1733940924785,0.00100064,99880.0,99879.0,0.73284438]
[1733940926034,0.00100064,99880.0,99879.0,0.73084438]
[1733940926443,0.00100064,99880.0,99879.0,0.73484438]
[1733940926868,0.00100064,99880.0,99879.0,0.16439494]
[1733940927252,0.00100064,99880.0,99879.0,0.06427394]
[1733940927453,0.04680064,99880.0,99879.0,0.06427394]
[1733940927792,0.04680064,99880.0,99879.0,0.06027394]
[1733940928200,0.00100064,99880.0,99879.0,0.06027394]
[1733940928418,6.4e-07,99880.0,99879.0,0.06127497]
[1733940928837,0.00100064,99880.0,99879.0,0.06127497]
[1733940929239,0.00100064,99880.0,99879.0,0.06027394]
[1733940929391,0.00100064,99880.0,99879.0,0.06327394]
[1733940929612,6.4e-07,99880.0,99879.0,0.06327394]
[1733940929843,6.4e-07,99880.0,99879.0,0.06027394]
[1733940930397,6.4e-07,99880.0,99879.0,0.06127499]
[1733940931062,0.00100064,99880.0,99879.0,0.06127499]
[1733940931487,0.00100064,99880.0,99879.0,0.06027394]
[1733940931712,0.00300064,99880.0,99879.0,0.06027394]
[1733940931914,0.00100064,99880.0,99879.0,0.06027394]
[1733940932126,6.4e-07,99880.0,99879.0,0.06027394]
[1733940932342,0.10030909,99880.0,99879.0,0.06027394]
[1733940932557,0.10030909,99880.0,99847.0,0.100153]
[1733940932558,0.10030909,99880.0,99877.0,0.06027394]
[1733940932772,6.4e-07,99880.0,99879.0,0.06027394]
[1733940932980,0.10030909,99880.0,99879.0,0.06027394]
[1733940933385,0.10330909,99880.0,99879.0,0.06027394]
[1733940933600,0.00300064,99880.0,99877.0,0.16039594]
[1733940933812,0.00200064,99880.0,99879.0,0.06027394]
[1733940934223,0.00300064,99880.0,99879.0,0.06027394]
[1733940934659,0.00100064,99880.0,99879.0,0.06027394]
[1733940935078,0.00300064,99880.0,99879.0,0.06027394]
[1733940935280,0.00200064,99880.0,99879.0,0.06027394]
[1733940935486,0.00300064,99880.0,99877.0,0.06027394]
[1733940935696,0.00400064,99880.0,99877.0,0.06027394]
[1733940936107,0.0469,99878.0,99875.0,0.06027394]
[1733940937174,0.0469,99878.0,99874.0,0.06027394]
[1733940937382,0.200246,99877.0,99873.0,0.06027394]
[1733940937584,0.0469,99878.0,99873.0,0.06027394]
[1733940937793,0.0469,99878.0,99873.0,0.100127]
[1733940938008,0.00017224,99880.0,99877.0,0.06027394]
[1733940938212,0.00017224,99880.0,99870.0,8.58e-05]
[1733940938213,0.00017224,99880.0,99879.0,0.21027394]
[1733940939702,0.00117224,99880.0,99879.0,0.21027394]
[1733940941012,0.00317224,99880.0,99879.0,0.21027394]
[1733940941649,0.00217224,99880.0,99879.0,0.21027394]
[1733940941985,0.00317224,99880.0,99879.0,0.21027394]
[1733940942393,0.00217224,99880.0,99879.0,0.21027394]
[1733940942764,0.00317224,99880.0,99879.0,0.21027394]
[1733940946172,0.00017224,99880.0,99879.0,0.21027394]
[1733940946390,0.004437,99880.0,99879.0,0.21027394]
[1733940946598,0.00117224,99880.0,99879.0,0.21027394]
[1733940946807,0.00217224,99880.0,99879.0,0.21027394]
[1733940947757,0.00117224,99880.0,99879.0,0.21027394]
[1733940948615,0.00017224,99880.0,99879.0,0.21027394]
[1733940948827,0.00117224,99880.0,99879.0,0.21027394]
[1733940949379,0.00017224,99880.0,99879.0,0.36027394]
[1733940949591,0.00017224,99880.0,99879.0,0.61158239]
[1733940949813,2.4e-07,99880.0,99879.0,0.61158239]
[1733940950038,2.4e-07,99880.0,99879.0,0.61058239]
[1733940950457,2.4e-07,99880.0,99879.0,0.61258239]
[1733940951291,2.4e-07,99880.0,99879.0,0.53258239]
[1733940951909,2.4e-07,99880.0,99879.0,0.53058239]
[1733940952107,2.4e-07,99880.0,99879.0,0.55358239]
[1733940952325,0.0001722,99890.0,99888.0,0.3]
[1733940952521,0.0001722,99890.0,99888.0,0.50058649]
[1733940952821,0.000172,99920.0,99919.0,0.100081]
[1733940953076,0.01069184,99920.0,99919.0,0.100081]
[1733940953628,0.0044406,99920.0,99919.0,0.100081]
[1733940954042,0.00460554,99920.0,99919.0,0.100081]
[1733940955039,0.01560554,99920.0,99919.0,0.251081]
[1733940955295,0.00660554,99920.0,99919.0,0.250081]
[1733940955619,0.00860554,99920.0,99919.0,0.250081]
[1733940955821,0.00460554,99920.0,99919.0,0.250081]
[1733940956227,0.00560554,99920.0,99919.0,0.250081]
[1733940956431,0.00660554,99920.0,99919.0,0.250081]
[1733940958058,0.00460554,99920.0,99919.0,0.250081]
[1733940958825,0.00760554,99920.0,99919.0,0.250081]
[1733940959263,0.00460554,99920.0,99919.0,0.250081]
[1733940960548,0.00033795,99920.0,99919.0,0.250081]
[1733940960797,0.00460086,99920.0,99919.0,0.250081]
[1733940961183,0.00460086,99920.0,99919.0,0.400081]
[1733940961415,0.00460086,99920.0,99919.0,0.50038945]
[1733940961610,0.000172,99940.0,99928.0,0.400072]
[1733940962078,0.000172,99940.0,99928.0,0.65038045]
[1733940962287,0.000172,99940.0,99928.0,0.67549686]
[1733940963192,0.0014,99929.0,99928.0,0.68349686]
[1733940963623,0.0014,99929.0,99928.0,0.258072]
[1733940964504,0.0004,99929.0,99928.0,0.253072]
[1733940964710,0.0004,99929.0,99928.0,0.258072]
[1733940964939,0.0004,99929.0,99928.0,0.255072]
[1733940965141,0.0004,99929.0,99928.0,0.252072]
[1733940965317,0.0004,99929.0,99928.0,0.253072]
[1733940965523,0.0004,99929.0,99928.0,0.35338045]
[1733940965723,0.0004,99929.0,99928.0,0.50138045]
[1733940965929,0.0004,99929.0,99928.0,0.50038045]
[1733940966136,0.0004,99929.0,99928.0,0.50238045]
[1733940966783,0.0004,99929.0,99928.0,0.65238045]
[1733940967319,0.0004,99929.0,99928.0,0.65138045]
[1733940967525,0.0004,99929.0,99928.0,0.65038045]
[1733940967736,0.0004,99929.0,99928.0,0.65738045]
[1733940967737,0.0014,99929.0,99928.0,0.65738045]
[1733940968055,0.0004,99929.0,99928.0,0.65238045]
[1733940968227,0.0004,99929.0,99928.0,0.65038045]
[1733940968426,5.2e-05,99949.0,99948.0,0.250052]
[1733940968607,0.00678279,99949.0,99948.0,0.250052]
[1733940969345,5.2e-05,99949.0,99948.0,0.250052]
[1733940971216,0.002052,99949.0,99948.0,0.250052]
[1733940971483,0.005052,99949.0,99948.0,0.250052]
[1733940971740,0.002052,99949.0,99948.0,0.250052]
[1733940972012,0.004052,99949.0,99948.0,0.250052]
[1733940972459,0.004052,99949.0,99948.0,0.400052]
[1733940972675,0.004052,99949.0,99948.0,0.50036045]
[1733940972886,0.004052,99949.0,99948.0,0.52547686]
[1733940973673,0.002052,99949.0,99948.0,0.52547686]
[1733940974731,5.2e-05,99949.0,99948.0,0.52647686]
[1733940975312,5.2e-05,99949.0,99948.0,0.52547686]
[1733940975547,1e-06,99949.0,99948.0,0.52847686]
[1733940975756,1e-06,99949.0,99948.0,0.55147686]
[1733940975961,1e-06,99949.0,99948.0,0.54947686]
[1733940976164,0.001001,99949.0,99948.0,0.55547686]
[1733940976783,0.001001,99949.0,99948.0,0.55447686]
[1733940976987,1e-06,99949.0,99948.0,0.55447686]
[1733940977209,1e-06,99949.0,99948.0,0.55747686]
[1733940979136,0.0004,99969.0,99959.0,0.400041]
[1733940979340,0.0004,99969.0,99959.0,0.52546586]
[1733940980356,0.00033792,99960.0,99959.0,0.52546586]
[1733940980560,0.00033792,99960.0,99959.0,0.50034945]
[1733940981180,0.00033792,99960.0,99959.0,0.52546586]
[1733940981384,0.00033792,99960.0,99959.0,0.52846586]
[1733940981805,9.2e-07,99960.0,99959.0,0.52434945]
[1733940982014,9.2e-07,99960.0,99959.0,0.55446586]
[1733940982245,9.2e-07,99960.0,99959.0,0.67934945]
[1733940982470,0.0001716,99980.0,99979.0,0.473]
[1733940982471,3.2e-07,99980.0,99979.0,0.473]
[1733940982681,0.1256,100010.0,99998.0,0.15]
[1733940982891,0.0458,100010.0,100000.0,0.3574789]
[1733940983096,0.083372,100020.0,100010.0,0.09999]
[1733940983306,0.083372,100020.0,100010.0,0.4574689]
[1733940983516,0.083372,100020.0,100010.0,0.48558409]
[1733940983723,0.08392518,100020.0,100010.0,0.48558409]
[1733940983929,0.08392518,100020.0,100010.0,0.70777735]
[1733940983930,0.00072518,100020.0,100010.0,0.70777735]
[1733940984139,1.8e-07,100020.0,100010.0,0.93430608]
[1733940984760,0.0157296,100030.0,100020.0,0.53289244]
[1733940984761,0.01568978,100030.0,100020.0,0.53289244]
[1733940984966,0.01585563,100030.0,100020.0,0.76129608]
[1733940985183,0.00263034,100030.0,100020.0,0.94336144]
[1733940985394,0.00263034,100030.0,100020.0,0.98555374]
[1733940985600,0.00263034,100030.0,100020.0,0.70776735]
[1733940985807,0.0005718,100050.0,100040.0,0.39996]
[1733940986040,0.0005718,100050.0,100040.0,0.70774735]
[1733940986930,0.0005718,100050.0,100040.0,0.91522625]
[1733940987345,0.0015718,100050.0,100040.0,0.92022625]
[1733940987843,0.06469359,100080.0,100060.0,0.09993]
[1733940988050,0.01692723,100070.0,100060.0,0.09993]
[1733940988257,0.19986,100070.0,100050.0,0.099942]
[1733940988466,0.01067649,100060.0,100050.0,0.07747155]
[1733940988672,0.199893,100060.0,100040.0,0.102952]
[1733940988924,0.00624233,100050.0,100040.0,0.102952]
[1733940989132,0.02376164,100050.0,100040.0,0.102952]
[1733940989339,0.00684391,100050.0,100040.0,0.102952]
[1733940989588,0.00784391,100050.0,100040.0,0.009]
[1733940990253,0.2009,100050.0,100040.0,0.009]
[1733940990470,0.001,100050.0,100040.0,0.10896]
[1733940990777,0.001,100050.0,100040.0,0.30843839]
[1733940990778,0.00683964,100050.0,100040.0,0.30843839]
[1733940991057,0.00683964,100050.0,100040.0,0.3084389]
[1733940991325,0.00683964,100050.0,100040.0,0.3074389]
[1733940991602,0.00683964,100050.0,100040.0,0.4574389]
[1733940991856,0.01083964,100050.0,100040.0,0.4574389]
[1733940992111,0.01383964,100050.0,100040.0,0.24996]
[1733940992369,0.01383964,100050.0,100040.0,1.08822625]
[1733940992370,0.004,100050.0,100040.0,1.08822625]
[1733940992664,0.004,100050.0,100040.0,1.08922625]
[1733940992897,0.04330688,100080.0,100070.0,0.09993]
[1733940993174,0.04330688,100080.0,100060.0,0.52042319]
[1733940993451,0.04330688,100080.0,100070.0,0.09993]
[1733940993452,0.08023059,100080.0,100070.0,0.09993]
[1733940994290,0.04330688,100080.0,100070.0,0.09993]
[1733940994295,0.08379551,100090.0,100080.0,0.09992]
[1733940994296,0.0468718,100090.0,100080.0,0.09992]
[1733940994951,0.08379551,100090.0,100080.0,0.09992]
[1733940995586,0.03692371,100080.0,100070.0,0.10008775]
[1733940995794,0.11432371,100080.0,100070.0,0.10008775]
[1733940996000,0.0774,100080.0,100070.0,0.10008775]
[1733940996409,0.11432371,100080.0,100070.0,0.10008775]
[1733940997468,0.17870845,100080.0,100070.0,0.00016575]
[1733940997689,0.38154845,100080.0,100070.0,0.00016575]
[1733940997926,0.38837828,100080.0,100070.0,0.00016575]
[1733940998143,0.38437828,100080.0,100070.0,0.00016575]
[1733940998359,0.39137828,100080.0,100070.0,0.00116575]
[1733940998572,0.38437828,100080.0,100070.0,0.00016575]
[1733940998974,0.38737828,100080.0,100070.0,0.00016575]
[1733940999601,0.38154845,100080.0,100070.0,0.00016575]
[1733941000013,0.38054845,100080.0,100070.0,0.00016575]
[1733941000221,0.37754845,100080.0,100070.0,0.00016575]
[1733941000428,0.38854845,100080.0,100070.0,0.00216575]
[1733941000874,0.38254845,100080.0,100070.0,0.00116575]
[1733941001092,0.39154845,100080.0,100070.0,0.00116575]
[1733941001297,0.37754845,100080.0,100070.0,0.00016575]
[1733941001498,0.57544845,100080.0,100070.0,0.00016575]
[1733941001705,0.58044845,100080.0,100070.0,0.00016575]
[1733941001972,0.57544845,100080.0,100070.0,0.00016575]
[1733941002577,0.57844845,100080.0,100070.0,0.00016575]
[1733941003211,0.03692371,100060.0,100050.0,0.19989]
[1733941003414,0.04377076,100060.0,100050.0,0.19989]
[1733941004236,0.00684705,100060.0,100050.0,0.40836828]
[1733941004460,0.00684705,100070.0,100060.0,0.09994]
[1733941004677,0.00684705,100070.0,100060.0,0.52080364]
[1733941006562,0.00701268,100080.0,100070.0,0.09993]
[1733941006734,0.00701268,100080.0,100070.0,0.30840796]
[1733941006966,0.00701268,100080.0,100070.0,0.09993]
[1733941007168,0.00701268,100080.0,100070.0,0.10092906]
[1733941007571,0.00016563,100080.0,100070.0,0.30840796]
[1733941007769,0.00690317,100080.0,100070.0,0.3074089]
[1733941007981,0.00690317,100080.0,100070.0,0.09993]
[1733941008186,0.00690317,100080.0,100070.0,0.10292907]
[1733941008336,0.03708934,100080.0,100070.0,0.10193]
[1733941008961,0.03708934,100080.0,100070.0,0.10393]
[1733941009405,0.03708934,100080.0,100070.0,0.10193]
[1733941009600,0.00016563,100080.0,100070.0,0.07946356]
[1733941009830,0.00016563,100080.0,100070.0,0.07746356]
[1733941010055,0.03708934,100080.0,100070.0,0.07746356]
[1733941010222,0.00216563,100080.0,100070.0,0.28594165]
[1733941010426,0.00216563,100080.0,100070.0,0.28494246]
[1733941010647,0.00516563,100080.0,100070.0,0.07746356]
[1733941010998,0.01116563,100080.0,100070.0,0.07946261]
[1733941011198,0.00316563,100080.0,100070.0,0.07846261]
[1733941011405,0.00316563,100080.0,100070.0,0.08046261]
[1733941011950,0.00016563,100080.0,100070.0,0.08046261]
[1733941012144,0.00016563,100080.0,100070.0,0.28794151]
[1733941012351,0.00016563,100080.0,100070.0,0.28894246]
[1733941012751,0.00016563,100080.0,100070.0,0.08146356]
[1733941012947,0.00016563,100080.0,100070.0,0.08246261]
[1733941013457,0.00016563,100080.0,100070.0,0.08046261]
[1733941013649,0.00016563,100080.0,100070.0,0.07846261]
[1733941014091,0.00216563,100080.0,100070.0,0.07846261]
[1733941015784,0.00216563,100080.0,100070.0,0.08046261]
[1733941016164,0.00216563,100080.0,100070.0,0.07846261]
[1733941016365,0.00216563,100080.0,100070.0,0.28594151]
[1733941016599,0.00016563,100080.0,100070.0,0.28494246]
[1733941016987,0.00016563,100080.0,100070.0,0.5003272]
[1733941017187,0.00016563,100080.0,100070.0,0.4983272]
[1733941017658,0.00216563,100080.0,100070.0,0.4983272]
[1733941017945,0.00016563,100080.0,100070.0,0.4983272]
[1733941018231,0.00016563,100080.0,100070.0,0.5003272]
[1733941018385,0.00016563,100080.0,100070.0,0.5023272]
[1733941019494,0.00033723,100080.0,100070.0,0.5023272]
[1733941021885,0.00033723,100080.0,100070.0,0.18177201]
[1733941022147,0.00033723,100080.0,100070.0,0.182771]
[1733941025886,0.03726094,100080.0,100070.0,0.08146356]
[1733941026085,0.00033723,100080.0,100070.0,0.28894246]
[1733941026658,0.00033723,100080.0,100070.0,0.08146356]
[1733941026916,0.00033723,100080.0,100070.0,0.07846262]
[1733941027348,0.16666094,100080.0,100070.0,0.07746356]
[1733941027524,0.16666094,100080.0,100070.0,0.22746356]
[1733941029646,0.16666094,100080.0,100070.0,0.07746356]
[1733941029862,0.16666094,100080.0,100070.0,0.22746356]
[1733941030069,0.16466094,100080.0,100070.0,0.22746356]
[1733941030271,0.16666094,100080.0,100070.0,0.22746356]
[1733941030589,0.16466094,100080.0,100070.0,0.22746356]
[1733941030797,0.16966094,100080.0,100070.0,0.22746356]
[1733941031246,0.16466094,100080.0,100070.0,0.22746356]
[1733941031617,0.16966094,100080.0,100070.0,0.22746356]
[1733941031819,0.16766094,100080.0,100070.0,0.22746356]
[1733941032106,0.16466094,100080.0,100070.0,0.22746356]
[1733941032558,0.03726094,100080.0,100070.0,0.22746356]
[1733941032770,0.00033723,100080.0,100070.0,0.53525091]
[1733941033149,0.00233723,100080.0,100070.0,0.6483272]
[1733941033381,0.00233723,100080.0,100070.0,0.58071619]
[1733941033585,0.00033723,100080.0,100070.0,0.58071619]
[1733941033939,0.00033723,100080.0,100070.0,0.58371619]
[1733941035379,0.00033723,100080.0,100070.0,0.65266574]
[1733941036186,0.00033723,100080.0,100070.0,0.33277201]
[1733941036780,0.03726094,100080.0,100070.0,0.08246356]
[1733941037559,0.11616094,100080.0,100070.0,0.0834627]
[1733941037771,0.11616094,100080.0,100070.0,0.08246356]
[1733941038605,0.11616094,100080.0,100070.0,0.23246356]
[1733941041479,0.07923723,100080.0,100070.0,0.23246356]
[1733941042044,0.11616094,100080.0,100070.0,0.23246356]
[1733941042252,0.11616094,100080.0,100070.0,0.23254936]
[1733941046953,0.11616094,100080.0,100070.0,0.23054936]
[1733941047185,0.22564568,100080.0,100070.0,8.58e-05]
[1733941047435,0.57748568,100080.0,100070.0,8.58e-05]
[1733941047643,0.79962051,100080.0,100070.0,8.58e-05]
[1733941047856,0.97732838,100080.0,100070.0,8.58e-05]
[1733941048068,1.19946322,100080.0,100070.0,8.58e-05]
[1733941048290,0.97732838,100080.0,100070.0,8.58e-05]
[1733941049152,1.19946322,100080.0,100070.0,8.58e-05]
[1733941049569,1.42928066,100080.0,100070.0,8.58e-05]
[1733941049780,0.15,100070.0,100060.0,8.58e-05]
[1733941049996,1.18262335,100070.0,100060.0,8.58e-05]
[1733941050193,1.33816102,100070.0,100060.0,8.58e-05]
[1733941050401,1.33807069,100070.0,100060.0,8.58e-05]
[1733941050809,1.33807069,100070.0,100040.0,8.58e-05]
[1733941050810,0.4758,100050.0,100040.0,8.58e-05]
[1733941051032,0.57610845,100050.0,100040.0,8.58e-05]
[1733941051561,0.66493193,100050.0,100040.0,8.58e-05]
[1733941051766,1.02798459,100050.0,100040.0,8.58e-05]
[1733941051971,1.42976639,100050.0,100040.0,8.58e-05]
[1733941052170,1.20770769,100050.0,100040.0,8.58e-05]
[1733941052373,1.21270769,100050.0,100040.0,8.58e-05]
[1733941052589,1.43429586,100050.0,100040.0,8.58e-05]
[1733941052791,1.34566059,100050.0,100040.0,8.58e-05]
[1733941053226,1.34366059,100050.0,100040.0,8.58e-05]
[1733941053428,1.06005924,100050.0,100040.0,8.58e-05]
[1733941053631,1.06005924,100050.0,100000.0,0.09999]
[1733941053632,0.03692371,100010.0,100000.0,0.09999]
[1733941053844,0.03692371,99997.0,99993.0,0.100007]
[1733941054250,0.03692371,99997.0,99975.0,0.001]
[1733941054460,0.0789,99996.0,99994.0,0.100005]
[1733941054900,0.0789,99996.0,99994.0,0.10055818]
[1733941056156,0.0789,99996.0,99995.0,0.15]
[1733941057008,0.0799,99996.0,99995.0,0.15]
[1733941057215,0.0789,99996.0,99995.0,0.15]
[1733941058584,0.0789,99996.0,99995.0,0.151]
[1733941058792,0.0789,99996.0,99995.0,0.15]
[1733941059401,0.0819,99996.0,99995.0,0.15]
[1733941059608,0.03692371,99995.0,99994.0,0.00055318]
[1733941059815,0.18668765,99995.0,99994.0,0.00055318]
[1733941060014,0.27954147,99995.0,99994.0,0.00055318]
[1733941060267,0.41680936,99995.0,99994.0,0.00055318]
[1733941060636,0.32026332,99995.0,99994.0,0.00055318]
[1733941060808,0.26493216,99995.0,99994.0,0.00055318]
[1733941061283,0.26593216,99995.0,99994.0,0.00055318]
[1733941061767,0.26693216,99995.0,99994.0,0.00055318]
[1733941062190,0.26493216,99995.0,99994.0,0.00055318]
[1733941062432,0.26893216,99995.0,99994.0,0.00055318]
[1733941063707,0.03692371,99963.0,99940.0,0.01062378]
[1733941063901,0.03692371,99961.0,99956.0,0.100043]
[1733941064107,0.03692371,99961.0,99952.0,0.100047]
[1733941064307,0.03692371,99961.0,99940.0,8.59e-05]
[1733941064308,0.13723216,99961.0,99949.0,0.10005]
[1733941065011,0.13723216,99961.0,99942.0,0.100057]
[1733941065012,0.13798765,99961.0,99960.0,0.00025165]
[1733941065422,0.03692371,99961.0,99960.0,0.00025165]
[1733941065625,0.004,99961.0,99960.0,0.00025165]
[1733941065828,0.004,99961.0,99960.0,0.10029065]
[1733941066442,0.03692371,99961.0,99960.0,0.00025165]
[1733941066669,0.03892371,99961.0,99960.0,0.00025165]
[1733941066873,0.04092371,99961.0,99960.0,0.00025165]
[1733941067323,0.03892371,99961.0,99960.0,0.00025165]
[1733941067928,0.03692371,99961.0,99960.0,0.00025165]
[1733941068332,0.03792371,99961.0,99960.0,0.00025165]
[1733941069163,0.001,99961.0,99960.0,0.00025165]
[1733941069786,0.003,99961.0,99960.0,0.00025165]
[1733941070209,0.002,99961.0,99960.0,0.00025165]
[1733941071117,0.03692371,99968.0,99967.0,0.15]
[1733941072431,0.04192371,99968.0,99966.0,0.15]
[1733941072841,0.03692371,99963.0,99960.0,0.00025165]
[1733941073043,0.005,99968.0,99960.0,0.00025165]
[1733941073044,0.03692371,99962.0,99960.0,0.00025165]
[1733941073881,0.03692371,99962.0,99961.0,0.250039]
[1733941074292,0.03792371,99962.0,99961.0,0.250039]
[1733941074902,0.03892371,99962.0,99961.0,0.250039]
[1733941075112,0.03692371,99962.0,99961.0,0.250039]
[1733941075316,0.03792371,99962.0,99961.0,0.250039]
[1733941075724,0.03992371,99962.0,99961.0,0.250039]
[1733941080414,0.003,99962.0,99961.0,0.250039]
[1733941081046,0.03992371,99962.0,99961.0,0.250039]
[1733941081846,0.03992371,99962.0,99961.0,0.15]
[1733941082046,0.03992371,99962.0,99960.0,0.00025165]
[1733941082047,0.03692371,99961.0,99960.0,0.00025165]
[1733941082247,0.03692371,99961.0,99950.0,8.58e-05]
[1733941082248,0.11512371,99951.0,99950.0,8.58e-05]
[1733941082510,0.03692371,99953.0,99950.0,0.10030172]
[1733941082651,0.03692371,99953.0,99951.0,0.100049]
[1733941082849,0.03692371,99951.0,99950.0,0.00025172]
[1733941083067,0.00064425,99970.0,99951.0,0.15]
[1733941083268,0.00064425,99970.0,99969.0,0.250031]
[1733941083634,2.5e-07,99970.0,99969.0,0.66251574]
[1733941083779,2.5e-07,99970.0,99969.0,0.76233894]
[1733941083968,0.0001716,100000.0,99999.0,0.250001]
[1733941085287,0.00072342,100000.0,99999.0,0.250001]
[1733941085529,0.00072342,100000.0,99999.0,0.251001]
[1733941085695,0.00072342,100000.0,99999.0,0.250001]
[1733941086819,0.00072342,100000.0,99999.0,0.35030945]
[1733941086820,4.2e-07,100000.0,99999.0,0.35030945]
[1733941087440,4.2e-07,100000.0,99999.0,0.35430945]
[1733941087650,0.03692371,100020.0,100010.0,0.09999]
[1733941087855,0.03692371,100030.0,100020.0,0.09998]
[1733941089306,0.03692371,100030.0,100020.0,0.10297963]
[1733941089960,0.03692371,100040.0,100030.0,0.199926]
[1733941091217,0.03692371,100040.0,100030.0,0.20092552]
[1733941091422,0.03692371,100040.0,100030.0,0.20192552]
[1733941091638,0.10030845,100040.0,100030.0,0.099961]
[1733941091848,0.14646394,100040.0,100030.0,0.099961]
[1733941092090,0.14646394,100040.0,100030.0,0.101961]
[1733941092296,0.14646394,100040.0,100030.0,0.099961]
[1733941092909,0.34638394,100040.0,100020.0,0.199945]
[1733941093117,0.03692371,100020.0,100010.0,0.249982]
[1733941093360,0.03692371,100020.0,100010.0,0.349965]
[1733941094177,0.17946394,100030.0,100010.0,0.349965]
[1733941094384,0.37940394,100030.0,100010.0,0.349965]
[1733941094593,0.37940394,100030.0,100010.0,0.349967]
[1733941094799,0.001,100020.0,100010.0,0.349967]
[1733941095012,0.37864845,100030.0,100010.0,0.249982]
[1733941095244,0.57859945,100030.0,100010.0,0.449955]
[1733941095467,0.58059945,100030.0,100010.0,0.449955]
[1733941095702,0.78055245,100030.0,100010.0,0.249982]
[1733941095917,0.03692371,100020.0,100010.0,0.249982]
[1733941096132,0.03892371,100030.0,100020.0,0.09998]
[1733941096355,0.03892371,100030.0,100020.0,0.24998]
[1733941096356,0.002,100030.0,100020.0,0.24998]
[1733941096565,0.002,100030.0,100020.0,0.43308845]
[1733941096566,0.001,100030.0,100020.0,0.43308845]
[1733941096765,0.006,100030.0,100020.0,0.43308845]
[1733941096998,0.005,100030.0,100020.0,0.43308845]
[1733941098025,0.005,100030.0,100020.0,0.43508845]
[1733941098240,0.03692371,100040.0,100020.0,0.53306845]
[1733941098417,0.03692371,100040.0,100020.0,0.53806845]
[1733941098657,0.001,100030.0,100020.0,0.53806845]
[1733941099713,0.03692371,100040.0,100030.0,0.099961]
[1733941099916,0.00016557,100050.0,100040.0,0.09996]
[1733941100123,0.03708928,100050.0,100040.0,0.09996]
[1733941101224,0.03808928,100050.0,100040.0,0.09996]
[1733941102501,0.03826108,100050.0,100040.0,0.09996]
[1733941102929,0.03726108,100050.0,100040.0,0.09996]
[1733941103135,0.03826108,100050.0,100040.0,0.09996]
[1733941104180,0.00133737,100050.0,100040.0,0.09996]
[1733941106315,0.22744582,100050.0,100040.0,0.09996]
[1733941106936,0.22644582,100050.0,100040.0,0.09996]
[1733941107161,0.22644582,100050.0,100030.0,0.29989]
[1733941107366,0.00075549,100040.0,100030.0,0.202925]
[1733941107575,0.00075549,100040.0,100030.0,0.199925]
[1733941108003,0.22644582,100050.0,100030.0,0.199925]
[1733941108914,0.22744582,100050.0,100030.0,0.199925]
[1733941109095,0.22644582,100050.0,100040.0,0.09996]
[1733941109421,0.22844582,100050.0,100040.0,0.09996]
[1733941109622,0.23344582,100050.0,100040.0,0.09996]
[1733941110032,0.23144582,100050.0,100040.0,0.09996]
[1733941110244,0.23344582,100050.0,100040.0,0.09996]
[1733941110449,0.03926108,100050.0,100040.0,0.10095956]
[1733941110704,0.00633737,100050.0,100040.0,0.10095956]
[1733941110911,0.00633737,100050.0,100040.0,0.20126781]
[1733941111113,0.00633737,100050.0,100040.0,0.27646781]
[1733941111340,0.00633737,100050.0,100040.0,0.27546845]
[1733941111562,0.00433737,100050.0,100040.0,0.29846845]
[1733941111734,0.00533737,100050.0,100040.0,0.29846845]
[1733941112402,0.00033737,100050.0,100040.0,0.29846845]
[1733941112778,3.7e-07,100050.0,100040.0,0.56154474]
[1733941113180,3.7e-07,100050.0,100040.0,0.56454474]
[1733941113812,3.7e-07,100050.0,100040.0,0.66454474]
[1733941114045,9.7e-07,100060.0,100050.0,0.38602629]
[1733941114236,9.7e-07,100060.0,100050.0,0.48633474]
[1733941114860,9.7e-07,100060.0,100050.0,0.22325845]
[1733941115416,9.7e-07,100060.0,100050.0,0.37325845]
[1733941115644,0.00100097,100060.0,100050.0,0.37625845]
[1733941116128,9.7e-07,100060.0,100050.0,0.37325845]
[1733941116336,0.00100097,100060.0,100050.0,0.38225845]
[1733941116537,0.00100097,100060.0,100050.0,0.23625845]
[1733941116735,9.7e-07,100060.0,100050.0,0.37725845]
[1733941117150,9.7e-07,100060.0,100050.0,0.22725845]
[1733941117371,0.00100097,100060.0,100050.0,0.38425845]
[1733941117587,0.00100097,100060.0,100050.0,0.23425845]
[1733941117778,0.00100097,100060.0,100050.0,0.23025845]
[1733941117968,0.00100097,100060.0,100050.0,0.23325845]
[1733941118198,0.00200097,100060.0,100050.0,0.23325845]
[1733941119076,9.7e-07,100060.0,100050.0,0.22325845]